[Event "12th KIIT International 2019"]
[Site "Odisha"]
[Date "2019.06.03"]
[Round "5.17"]
[White "Lugovskoy, Maxim"]
[Black "Arpita, Mukherjee"]
[Result "1/2-1/2"]
[ECO "B51"]
[WhiteElo "2451"]
[BlackElo "2196"]
[Annotator "ChessBase"]
[PlyCount "253"]
[EventDate "2019.05.31"]
[EventType "swiss"]
[EventCountry "IND"]
[SourceTitle "playchess.com"]
[Source "ChessBase"]
[SourceQuality "1"]
[TimeControl "5400+30"]

1. e4 {[%emt 0:00:00]} c5 {[%emt 0:00:00]} 2. Nf3 {[%emt 0:00:00]} d6 {[%emt 0:00:00]} 3. Bb5+ {[%emt 0:00:00]} Nd7 {[%emt 0:00:12]} 4. d4 {[%emt 0:00:00]} cxd4 {[%emt 0:00:16]} 5. Qxd4 {[%emt 0:00:00]} a6 {[%emt 0:00:09]} 6. Bxd7+ {[%emt 0:00:04]} Bxd7 {[%emt 0:00:05]} 7. c4 {[%emt 0:00:04]} Rc8 {[%emt 0:00:11]} 8. Nc3 {[%emt 0:00:22]} Qc7 {[%emt 0:01:21]} 9. Nd2 {[%emt 0:00:05]} e6 {[%emt 0:02:45]} 10. a4 {[%emt 0:00:14]} b6 {[%emt 0:00:47]} 11. O-O {[%emt 0:01:41]} Nf6 {[%emt 0:00:18]} 12. b3 {[%emt 0:00:24]} Be7 {[%emt 0:00:27]} 13. Ba3 {[%emt 0:01:44]} O-O {[%emt 0:02:14]} 14. Rac1 {[%emt 0:00:17]} Rfd8 {[%emt 0:04:27]} 15. Rfd1 {[%emt 0:14:17]} Qb8 {[%emt 0:05:16]} 16. Qd3 {[%emt 0:06:08]} Bc6 {[%emt 0:02:50]} 17. Qe2 {[%emt 0:01:22]} Bf8 {[%emt 0:08:45]} 18. Nf3 {[%emt 0:16:54]} Qa8 {[%emt 0:02:23]} 19. Re1 {[%emt 0:02:10]} Nd7 {[%emt 0:25:36]} 20. Nd4 {[%emt 0:00:18]} Bb7 {[%emt 0:00:38]} 21. f4 {[%emt 0:01:31]} e5 {[%emt 0:07:02]} 22. Nf5 {[%emt 0:01:08]} Nc5 {[%emt 0:04:07]} 23. Bxc5 {[%emt 0:04:47]} Rxc5 {[%emt 0:01:01]} 24. Qg4 {[%emt 0:06:14]} Kh8 {[%emt 0:02:56]} 25. Nd5 {[%emt 0:04:37]} Bxd5 {[%emt 0:03:32]} 26. exd5 {[%emt 0:00:07]} g6 {[%emt 0:01:18]} 27. Nh4 {[%emt 0:03:02]} Bh6 {[%emt 0:01:43]} 28. g3 {[%emt 0:01:10]} Qc8 {[%emt 0:00:38]} 29. Qf3 {[%emt 0:02:25]} exf4 {[%emt 0:02:47]} 30. gxf4 {[%emt 0:01:48]} Re8 {[%emt 0:00:21]} 31. Ng2 {[%emt 0:02:19]} b5 {[%emt 0:02:13]} 32. Rxe8+ {[%emt 0:01:12]} Qxe8 {[%emt 0:00:01]} 33. Re1 {[%emt 0:00:07]} Qd7 {[%emt 0:00:15]} 34. cxb5 {[%emt 0:05:30]} axb5 {[%emt 0:00:06]} 35. b4 {[%emt 0:00:39]} Rc4 {[%emt 0:01:59]} 36. a5 {[%emt 0:00:18]} Bg7 {[%emt 0:00:29]} 37. Kh1 {[%emt 0:04:12]} Bc3 {[%emt 0:01:14]} 38. Rf1 {[%emt 0:01:59]} Bxb4 {[%emt 0:01:25]} 39. a6 {[%emt 0:00:01]} Bc5 {[%emt 0:00:13]} 40. Qe2 {[%emt 0:03:18]} Qf5 {[%emt 0:07:06]} 41. a7 {[%emt 0:01:50]} Bxa7 {[%emt 0:00:48]} 42. Qe7 {[%emt 0:00:07]} h5 {[%emt 0:01:48]} 43. Qxa7 {[%emt 0:00:33]} Qxd5 {[%emt 0:00:05]} 44. Qf2 {[%emt 0:00:51]} b4 {[%emt 0:01:52]} 45. f5 {[%emt 0:03:05]} Qxf5 {[%emt 0:04:11]} 46. Qxf5 {[%emt 0:00:30]} gxf5 {[%emt 0:00:01]} 47. Ne3 {[%emt 0:00:17]} Rc5 {[%emt 0:01:25]} 48. Kg2 {[%emt 0:01:09]} b3 {[%emt 0:00:37]} 49. Rb1 {[%emt 0:00:41]} f4 {[%emt 0:00:18]} 50. Nd1 {[%emt 0:00:19]} Rc2+ {[%emt 0:00:09]} 51. Kg1 {[%emt 0:01:38]} Rd2 {[%emt 0:01:37]} 52. Nc3 {[%emt 0:03:26]} f3 {[%emt 0:01:16]} 53. Rxb3 {[%emt 0:01:44]} Rg2+ {[%emt 0:00:43]} 54. Kh1 {[%emt 0:00:06]} Rc2 {[%emt 0:00:21]} 55. Kg1 {[%emt 0:05:23]} Rg2+ {[%emt 0:00:02]} 56. Kf1 {[%emt 0:00:13]} Rxh2 {[%emt 0:00:08]} 57. Ne4 {[%emt 0:00:03]} Kg7 {[%emt 0:01:16]} 58. Nxd6 {[%emt 0:00:20]} Rd2 {[%emt 0:00:30]} 59. Ne4 {[%emt 0:00:36]} Rd4 {[%emt 0:00:20]} 60. Ng5 {[%emt 0:00:12]} Kg6 {[%emt 0:00:24]} 61. Nxf3 {[%emt 0:00:03]} Ra4 {[%emt 0:00:19]} 62. Kg2 {[%emt 0:00:11]} f6 {[%emt 0:00:06]} 63. Kh3 {[%emt 0:00:27]} Rc4 {[%emt 0:00:24]} 64. Nh4+ {[%emt 0:00:37]} Kg5 {[%emt 0:00:31]} 65. Rb5+ {[%emt 0:00:03]} Kh6 {[%emt 0:00:08]} 66. Nf5+ {[%emt 0:00:42]} Kg6 {[%emt 0:00:24]} 67. Ne7+ {[%emt 0:00:04]} Kf7 {[%emt 0:00:47]} 68. Nd5 {[%emt 0:00:05]} Rd4 {[%emt 0:00:42]} 69. Kg3 {[%emt 0:00:08]} Rg4+ {[%emt 0:00:35]} 70. Kf3 {[%emt 0:00:13]} Rg5 {[%emt 0:01:00]} 71. Rb7+ {[%emt 0:00:04]} Ke6 {[%emt 0:00:16]} 72. Nf4+ {[%emt 0:00:13]} Kd6 {[%emt 0:00:12]} 73. Ke4 {[%emt 0:01:53]} Re5+ {[%emt 0:00:22]} 74. Kd4 {[%emt 0:00:02]} Kc6 {[%emt 0:00:01]} 75. Rh7 {[%emt 0:00:36]} Ra5 {[%emt 0:00:18]} 76. Rh6 {[%emt 0:00:28]} Ra4+ {[%emt 0:00:25]} 77. Ke3 {[%emt 0:00:02]} Ra3+ {[%emt 0:00:05]} 78. Nd3 {[%emt 0:00:15]} Kd5 {[%emt 0:00:07]} 79. Rxh5+ {[%emt 0:00:11]} f5 {[%emt 0:00:05]} 80. Rxf5+ {[%emt 0:00:42]} Ke6 {[%emt 0:00:05]} 81. Rb5 {[%emt 0:00:37]} Ra1 {[%emt 0:00:49]} 82. Ke4 {[%emt 0:00:24]} Kd6 {[%emt 0:00:48]} 83. Rb6+ {[%emt 0:00:16]} Kc7 {[%emt 0:00:10]} 84. Rh6 {[%emt 0:00:13]} Ra5 {[%emt 0:00:58]} 85. Kd4 {[%emt 0:00:25]} Rg5 {[%emt 0:00:07]} 86. Nb4 {[%emt 0:00:37]} Rg1 {[%emt 0:00:30]} 87. Nd5+ {[%emt 0:00:43]} Kd7 {[%emt 0:00:07]} 88. Nc3 {[%emt 0:00:11]} Rg5 {[%emt 0:00:17]} 89. Ke4 {[%emt 0:01:05]} Rg1 {[%emt 0:00:16]} 90. Nb5 {[%emt 0:00:22]} Rg4+ {[%emt 0:00:48]} 91. Kd5 {[%emt 0:00:56]} Rg5+ {[%emt 0:00:07]} 92. Kc4 {[%emt 0:00:01]} Rg1 {[%emt 0:00:57]} 93. Rh7+ {[%emt 0:02:53]} Ke6 {[%emt 0:00:09]} 94. Nd4+ {[%emt 0:00:10]} Kf6 {[%emt 0:00:10]} 95. Ra7 {[%emt 0:00:51]} Rg5 {[%emt 0:01:16]} 96. Ra6+ {[%emt 0:00:13]} Ke7 {[%emt 0:00:03]} 97. Nc6+ {[%emt 0:00:15]} Kf7 {[%emt 0:00:10]} 98. Kd4 {[%emt 0:00:04]} Rb5 {[%emt 0:00:44]} 99. Ke4 {[%emt 0:01:43]} Rb1 {[%emt 0:00:49]} 100. Ne5+ {[%emt 0:00:26]} Ke7 {[%emt 0:00:10]} 101. Nf3 {[%emt 0:00:28]} Rb5 {[%emt 0:00:28]} 102. Nd4 {[%emt 0:00:08]} Rh5 {[%emt 0:00:26]} 103. Nf5+ {[%emt 0:00:03]} Kd7 {[%emt 0:00:18]} 104. Rf6 {[%emt 0:00:48]} Rh1 {[%emt 0:01:00]} 105. Kd5 {[%emt 0:00:06]} Rd1+ {[%emt 0:00:04]} 106. Nd4 {[%emt 0:00:01]} Ke7 {[%emt 0:00:05]} 107. Rf3 {[%emt 0:00:13]} Rd2 {[%emt 0:01:45]} 108. Ke5 {[%emt 0:00:22]} Rg2 {[%emt 0:00:37]} 109. Ra3 {[%emt 0:00:07]} Rg5+ {[%emt 0:00:12]} 110. Nf5+ {[%emt 0:00:04]} Kd7 {[%emt 0:00:09]} 111. Ra7+ {[%emt 0:00:48]} Kc6 {[%emt 0:00:10]} 112. Rf7 {[%emt 0:00:02]} Rg1 {[%emt 0:00:14]} 113. Nd4+ {[%emt 0:00:05]} Kb6 {[%emt 0:00:18]} 114. Kd5 {[%emt 0:00:16]} Rg5+ {[%emt 0:00:22]} 115. Kd6 {[%emt 0:01:19]} Rg6+ {[%emt 0:00:07]} 116. Ne6 {[%emt 0:00:01]} Rg1 {[%emt 0:00:01]} 117. Rf4 {[%emt 0:00:11]} Rd1+ {[%emt 0:00:11]} 118. Nd4 {[%emt 0:00:01]} Rg1 {[%emt 0:00:29]} 119. Rf2 {[%emt 0:01:03]} Rb1 {[%emt 0:00:39]} 120. Rf8 {[%emt 0:01:15]} Kb7 {[%emt 0:00:40]} 121. Rh8 {[%emt 0:02:17]} Rd1 {[%emt 0:01:08]} 122. Kd5 {[%emt 0:00:43]} Rg1 {[%emt 0:00:12]} 123. Rh5 {[%emt 0:00:26]} Rg7 {[%emt 0:00:12]} 124. Nf5 {[%emt 0:00:25]} Rg1 {[%emt 0:00:12]} 125. Nd6+ {[%emt 0:00:09]} Kb6 {[%emt 0:00:12]} 126. Nc4+ {[%emt 0:00:02]} Kb5 {[%emt 0:00:17]} 127. Ne5 {[%emt 0:00:28]} 1/2-1/2

[Event "12th KIIT International 2019"]
[Site "Odisha"]
[Date "2019.06.03"]
[Round "5.18"]
[White "Kumar, Gaurav"]
[Black "Das, Sayantan"]
[Result "1-0"]
[ECO "B08"]
[WhiteElo "2082"]
[BlackElo "2419"]
[Annotator "ChessBase"]
[PlyCount "121"]
[EventDate "2019.05.31"]
[EventType "swiss"]
[EventCountry "IND"]
[SourceTitle "playchess.com"]
[Source "ChessBase"]
[SourceQuality "1"]
[TimeControl "5400+30"]

1. e4 {[%emt 0:00:00]} d6 {[%emt 0:00:03]} 2. d4 {[%emt 0:00:00]} g6 {[%emt 0:00:17]} 3. Nf3 {[%emt 0:06:39]} Nf6 {[%emt 0:00:32]} 4. Nc3 {[%emt 0:00:31]} Bg7 {[%emt 0:00:15]} 5. Bc4 {[%emt 0:00:40]} O-O {[%emt 0:01:31]} 6. Qe2 {[%emt 0:04:45]} c6 {[%emt 0:15:33]} 7. h3 {[%emt 0:03:26]} b5 {[%emt 0:06:06]} 8. Bd3 {[%emt 0:02:42]} Nfd7 {[%emt 0:04:30]} 9. O-O {[%emt 0:07:37]} Bb7 {[%emt 0:06:31]} 10. a4 {[%emt 0:05:29]} b4 {[%emt 0:04:59]} 11. Nb1 {[%emt 0:01:10]} e5 {[%emt 0:09:12]} 12. dxe5 {[%emt 0:01:28]} dxe5 {[%emt 0:00:17]} 13. Bg5 {[%emt 0:06:19]} f6 {[%emt 0:03:14]} 14. Be3 {[%emt 0:01:18]} c5 {[%emt 0:07:07]} 15. a5 {[%emt 0:00:32]} a6 {[%emt 0:01:36]} 16. Nbd2 {[%emt 0:03:43]} Nc6 {[%emt 0:04:20]} 17. Nc4 {[%emt 0:00:34]} Qe7 {[%emt 0:00:10]} 18. c3 {[%emt 0:00:12]} Kh8 {[%emt 0:06:40]} 19. Bc2 {[%emt 0:00:46]} Rad8 {[%emt 0:07:22]} 20. Rfd1 {[%emt 0:02:05]} Ndb8 {[%emt 0:00:58]} 21. Nb6 {[%emt 0:07:09]} Rxd1+ {[%emt 0:00:30]} 22. Bxd1 {[%emt 0:00:30]} Rd8 {[%emt 0:03:36]} 23. Bb3 {[%emt 0:08:33]} Qd6 24. Qc4 {[%emt 0:06:17]} bxc3 {[%emt 0:09:33]} 25. bxc3 {[%emt 0:02:26]} Nxa5 {[%emt 0:00:43]} 26. Rxa5 {[%emt 0:00:29]} Qxb6 {[%emt 0:00:06]} 27. Rxc5 {[%emt 0:00:07]} Bc6 {[%emt 0:02:05]} 28. Rxe5 {[%emt 0:05:04]} Qb7 {[%emt 0:00:11]} 29. Rc5 {[%emt 0:02:36]} Bb5 {[%emt 0:03:12]} 30. Qe6 {[%emt 0:01:22]} Re8 {[%emt 0:01:23]} 31. Qf7 {[%emt 0:02:20]} Qxe4 {[%emt 0:01:35]} 32. Rc7 {[%emt 0:02:57]} Nd7 {[%emt 0:00:18]} 33. Rxd7 {[%emt 0:00:47]} Bxd7 {[%emt 0:00:02]} 34. Qxd7 {[%emt 0:00:11]} Rb8 {[%emt 0:01:01]} 35. Bd5 {[%emt 0:00:24]} Qe8 {[%emt 0:00:54]} 36. Qxe8+ {[%emt 0:02:51]} Rxe8 {[%emt 0:00:02]} 37. c4 {[%emt 0:03:26]} a5 {[%emt 0:00:38]} 38. c5 {[%emt 0:00:11]} f5 {[%emt 0:00:42]} 39. c6 {[%emt 0:04:07]} a4 {[%emt 0:00:47]} 40. Ng5 {[%emt 0:01:12]} h6 {[%emt 0:00:42]} 41. Nf7+ {[%emt 0:00:07]} Kh7 {[%emt 0:00:02]} 42. Nd6 {[%emt 0:01:37]} Re7 {[%emt 0:00:12]} 43. Nb5 {[%emt 0:01:44]} Be5 {[%emt 0:00:45]} 44. Bb6 {[%emt 0:02:16]} h5 {[%emt 0:00:40]} 45. c7 {[%emt 0:01:07]} Re8 {[%emt 0:00:08]} 46. Na7 {[%emt 0:01:28]} Bxc7 {[%emt 0:00:54]} 47. Bxc7 {[%emt 0:00:03]} a3 {[%emt 0:00:20]} 48. Nb5 {[%emt 0:00:48]} Re1+ {[%emt 0:00:17]} 49. Kh2 {[%emt 0:00:01]} Rc1 {[%emt 0:00:36]} 50. Bd6 {[%emt 0:01:05]} Rd1 {[%emt 0:00:20]} 51. Bc4 {[%emt 0:00:34]} a2 {[%emt 0:00:44]} 52. Bxa2 {[%emt 0:00:11]} Rd2 {[%emt 0:00:05]} 53. Be6 {[%emt 0:01:28]} Rb2 {[%emt 0:00:34]} 54. Nd4 {[%emt 0:00:14]} Rxf2 {[%emt 0:00:21]} 55. Nf3 {[%emt 0:00:49]} Re2 {[%emt 0:00:13]} 56. Be5 {[%emt 0:00:40]} Kh6 {[%emt 0:00:23]} 57. h4 {[%emt 0:00:33]} Re4 {[%emt 0:00:17]} 58. Bf7 {[%emt 0:00:17]} Ra4 {[%emt 0:00:28]} 59. g3 {[%emt 0:00:47]} Ra7 {[%emt 0:00:22]} 60. Bf4+ {[%emt 0:00:06]} Kg7 {[%emt 0:00:15]} 61. Ne5 {[%emt 0:00:03]} 1-0

[Event "12th KIIT International 2019"]
[Site "Odisha"]
[Date "2019.06.04"]
[Round "6.14"]
[White "Rathneesh R"]
[Black "Saurabh Anand"]
[Result "*"]
[ECO "B48"]
[WhiteElo "2160"]
[BlackElo "2351"]
[Annotator "RC"]
[PlyCount "36"]
[EventDate "2019.05.31"]
[EventType "swiss"]
[EventCountry "IND"]
[SourceTitle "playchess.com"]
[Source "ChessBase"]
[SourceQuality "1"]
[TimeControl "5400+30"]

1. e4 {[%emt 1:30:30]} c5 {[%emt 0:00:14]} 2. Nf3 {[%emt 0:00:54]} e6 {[%emt 0:00:24]} 3. d4 {[%emt 0:02:54]} cxd4 {[%emt 0:00:20]} 4. Nxd4 {[%emt 0:00:43]} Nc6 {[%emt 0:00:15]} 5. Nc3 {[%emt 0:02:28]} Qc7 {[%emt 0:00:12]} 6. Be3 {[%emt 0:00:50]} Nf6 {[%emt 0:00:50]} 7. Qd2 {[%emt 0:03:17]} a6 {[%emt 0:00:42]} 8. O-O-O {[%emt 0:01:28]} b5 {[%emt 0:01:39]} 9. Bf4 {[%emt 0:08:16]} e5 {[%emt 0:08:54]} 10. Nxc6 {[%emt 0:02:18]} exf4 {[%emt 0:00:16]} 11. e5 {[%emt 0:01:00]} dxc6 {[%emt 1:21:44]} 12. exf6 {[%emt 0:01:08]} Be6 {[%emt 0:00:38]} 13. Ne4 {[%emt 0:22:08]} Bd5 {[%emt 0:06:07]} 14. c4 {[%emt 0:09:24]} Be6 {[%emt 0:16:28]} 15. Qc3 {[%emt 0:07:08]} g6 {[%emt 0:11:51]} 16. cxb5 {[%emt 0:03:46]} f3 {[%emt 0:46:53]} 17. Qc4 {[%emt 0:30:48]} c5 18. Qxc5 {[%emt 0:00:00]} Qc6 {[%emt 0:00:36]} *

[Event "12th KIIT International 2019"]
[Site "Odisha"]
[Date "2019.06.04"]
[Round "7.3"]
[White "Turov, Maxim"]
[Black "Siva Mahadevan"]
[Result "1-0"]
[ECO "A49"]
[WhiteElo "2579"]
[BlackElo "2298"]
[Annotator "ChessBase"]
[PlyCount "119"]
[EventDate "2019.05.31"]
[EventType "swiss"]
[EventCountry "IND"]
[SourceTitle "playchess.com"]
[Source "ChessBase"]
[SourceQuality "1"]
[TimeControl "5400+30"]

1. d4 {[%emt 0:00:00]} Nf6 {[%emt 0:00:00]} 2. Nf3 {[%emt 0:00:00]} g6 {[%emt 0:00:00]} 3. g3 {[%emt 0:00:00]} Bg7 {[%emt 0:00:00]} 4. Bg2 {[%emt 0:00:00]} O-O {[%emt 0:00:00]} 5. O-O {[%emt 0:00:00]} d6 {[%emt 0:00:07]} 6. b3 {[%emt 0:00:34]} e5 {[%emt 0:06:47]} 7. dxe5 {[%emt 0:01:25]} Nfd7 {[%emt 0:03:31]} 8. Bb2 {[%emt 0:12:44]} Nc6 {[%emt 0:01:37]} 9. Qc1 {[%emt 0:05:23]} Ndxe5 {[%emt 0:21:05]} 10. Nxe5 {[%emt 0:02:38]} Nxe5 {[%emt 0:00:14]} 11. c4 {[%emt 0:00:28]} f5 {[%emt 0:06:02]} 12. Nc3 {[%emt 0:01:32]} c6 {[%emt 0:02:47]} 13. Qd2 {[%emt 0:00:56]} Be6 {[%emt 0:02:44]} 14. Rfd1 {[%emt 0:02:09]} Re8 {[%emt 0:05:28]} 15. e3 {[%emt 0:03:57]} Qc7 {[%emt 0:11:27]} 16. Ne2 {[%emt 0:10:14]} Rad8 {[%emt 0:07:08]} 17. Rac1 {[%emt 0:01:50]} Qf7 {[%emt 0:03:05]} 18. Bd4 {[%emt 0:04:05]} a6 {[%emt 0:01:02]} 19. h3 {[%emt 0:05:35]} g5 {[%emt 0:10:10]} 20. f4 {[%emt 0:00:46]} gxf4 {[%emt 0:03:35]} 21. exf4 {[%emt 0:00:24]} Ng6 {[%emt 0:00:54]} 22. Bxg7 {[%emt 0:00:41]} Qxg7 {[%emt 0:00:06]} 23. Qd4 {[%emt 0:00:38]} Qf7 {[%emt 0:02:36]} 24. Nc3 {[%emt 0:05:03]} Nf8 {[%emt 0:05:56]} 25. Rd3 {[%emt 0:02:26]} Bc8 {[%emt 0:00:22]} 26. Rcd1 {[%emt 0:01:05]} Re6 {[%emt 0:01:11]} 27. Qf2 {[%emt 0:02:59]} Qg7 {[%emt 0:02:30]} 28. Ne2 {[%emt 0:01:38]} Rde8 {[%emt 0:00:59]} 29. Bf3 {[%emt 0:00:35]} Qh6 {[%emt 0:02:00]} 30. Nd4 {[%emt 0:01:00]} Rg6 {[%emt 0:00:26]} 31. Bg2 {[%emt 0:00:07]} Re7 {[%emt 0:01:06]} 32. Kh2 {[%emt 0:00:58]} Rf6 {[%emt 0:00:29]} 33. Nf3 {[%emt 0:02:02]} Rfe6 {[%emt 0:00:27]} 34. R1d2 {[%emt 0:00:39]} Nd7 {[%emt 0:00:33]} 35. Nh4 {[%emt 0:07:56]} Nf6 {[%emt 0:00:31]} 36. Qa7 {[%emt 0:00:55]} Qh5 {[%emt 0:00:32]} 37. Rxd6 {[%emt 0:01:11]} Ne4 {[%emt 0:00:25]} 38. Rxe6 {[%emt 0:00:52]} Bxe6 {[%emt 0:00:18]} 39. Rd8+ {[%emt 0:00:49]} Kf7 {[%emt 0:00:14]} 40. Qd4 {[%emt 0:00:51]} Nf6 {[%emt 0:00:55]} 41. Nf3 {[%emt 0:00:27]} Kg7 {[%emt 0:00:36]} 42. Qd6 {[%emt 0:01:13]} Re8 {[%emt 0:00:14]} 43. Rxe8 {[%emt 0:01:25]} Qxe8 {[%emt 0:00:02]} 44. Ne5 {[%emt 0:00:11]} Bc8 {[%emt 0:00:40]} 45. Bf3 {[%emt 0:02:02]} Nd7 {[%emt 0:00:42]} 46. Kg2 {[%emt 0:02:16]} Nxe5 {[%emt 0:00:35]} 47. fxe5 {[%emt 0:00:04]} Qd7 {[%emt 0:00:28]} 48. Qxd7+ {[%emt 0:02:01]} Bxd7 {[%emt 0:00:01]} 49. Kf2 {[%emt 0:00:08]} Kf7 {[%emt 0:00:05]} 50. Ke3 {[%emt 0:00:03]} Ke6 {[%emt 0:00:08]} 51. Kf4 {[%emt 0:00:09]} Be8 {[%emt 0:00:15]} 52. Be2 {[%emt 0:00:39]} c5 {[%emt 0:01:14]} 53. Bd3 {[%emt 0:02:09]} h6 {[%emt 0:00:54]} 54. Bxf5+ {[%emt 0:00:13]} Ke7 {[%emt 0:00:04]} 55. g4 {[%emt 0:01:16]} b5 {[%emt 0:00:17]} 56. g5 {[%emt 0:00:38]} hxg5+ {[%emt 0:00:12]} 57. Kxg5 {[%emt 0:00:06]} bxc4 {[%emt 0:00:06]} 58. bxc4 {[%emt 0:00:05]} Bf7 {[%emt 0:00:05]} 59. e6 {[%emt 0:00:15]} Be8 {[%emt 0:01:37]} 60. h4 {[%emt 0:00:05]} 1-0

[Event "12th KIIT International 2019"]
[Site "Odisha"]
[Date "2019.06.04"]
[Round "7.9"]
[White "Deshmukh, Anup"]
[Black "Burmakin, Vladimir"]
[Result "1/2-1/2"]
[ECO "A12"]
[WhiteElo "2229"]
[BlackElo "2526"]
[Annotator "RC"]
[PlyCount "83"]
[EventDate "2019.05.31"]
[EventType "swiss"]
[EventCountry "IND"]
[SourceTitle "playchess.com"]
[Source "ChessBase"]
[SourceQuality "1"]
[TimeControl "5400+30"]

1. c4 {[%emt 0:00:00]} c6 {[%emt 0:00:00]} 2. Nf3 {[%emt 0:01:57]} Nf6 {[%emt 0:00:45]} 3. b3 {[%emt 0:03:28]} d5 {[%emt 0:00:28]} 4. Bb2 {[%emt 0:00:20]} Bf5 {[%emt 0:01:07]} 5. d3 {[%emt 0:00:56]} e6 {[%emt 0:00:44]} 6. Nbd2 {[%emt 0:00:16]} h6 {[%emt 0:05:54]} 7. g3 {[%emt 0:02:05]} Be7 {[%emt 0:00:12]} 8. Bg2 {[%emt 0:00:08]} O-O {[%emt 0:00:08]} 9. O-O {[%emt 0:00:06]} a5 {[%emt 0:00:06]} 10. Re1 {[%emt 0:01:29]} Bh7 {[%emt 0:00:42]} 11. Rc1 {[%emt 0:05:01]} a4 {[%emt 0:09:52]} 12. bxa4 {[%emt 0:11:02]} Qa5 {[%emt 0:00:04]} 13. Rb1 {[%emt 0:01:50]} Qxa4 {[%emt 0:01:36]} 14. Qxa4 {[%emt 0:05:53]} Rxa4 {[%emt 0:00:03]} 15. Bc3 {[%emt 0:01:26]} dxc4 {[%emt 0:04:26]} 16. Rxb7 {[%emt 0:08:46]} Nd5 {[%emt 0:16:21]} 17. Be5 {[%emt 0:09:13]} c3 {[%emt 0:00:22]} 18. Nb3 {[%emt 0:10:25]} Rb4 {[%emt 0:03:29]} 19. Ra7 {[%emt 0:04:17]} c5 {[%emt 0:07:03]} 20. Bxb8 {[%emt 0:07:09]} Rbxb8 {[%emt 0:00:32]} 21. Ne5 {[%emt 0:03:53]} Bf6 {[%emt 0:14:04]} 22. Nd7 {[%emt 0:01:58]} Ra8 {[%emt 0:01:15]} 23. Nxf6+ {[%emt 0:02:50]} gxf6 {[%emt 0:00:06]} 24. Rxa8 {[%emt 0:03:14]} Rxa8 {[%emt 0:00:01]} 25. Ra1 {[%emt 0:07:11]} Ra3 {[%emt 0:05:21]} 26. Bxd5 {[%emt 0:01:17]} exd5 {[%emt 0:00:11]} 27. Nxc5 {[%emt 0:00:38]} d4 {[%emt 0:00:24]} 28. Nb3 {[%emt 0:01:05]} Ra4 {[%emt 0:00:17]} 29. g4 {[%emt 0:02:54]} f5 {[%emt 0:00:02]} 30. h3 {[%emt 0:00:12]} fxg4 {[%emt 0:00:26]} 31. hxg4 {[%emt 0:00:01]} f5 {[%emt 0:00:07]} 32. f3 {[%emt 0:00:46]} fxg4 {[%emt 0:00:08]} 33. fxg4 {[%emt 0:00:02]} Bg6 {[%emt 0:01:27]} 34. Kf2 {[%emt 0:00:43]} Bf7 {[%emt 0:00:04]} 35. Rc1 {[%emt 0:00:18]} Kg7 {[%emt 0:04:14]} 36. Kf3 {[%emt 0:00:55]} Bd5+ {[%emt 0:00:51]} 37. Kf4 {[%emt 0:00:38]} Kf6 {[%emt 0:00:07]} 38. e3 {[%emt 0:02:10]} dxe3+ {[%emt 0:01:13]} 39. Kxe3 {[%emt 0:00:02]} Rxa2 {[%emt 0:00:21]} 40. Nd4 {[%emt 0:00:44]} Rg2 {[%emt 0:00:34]} 41. Ne2 {[%emt 0:00:59]} Rxg4 {[%emt 0:00:55]} 42. Nxc3 {[%emt 0:00:23]} 1/2-1/2

[Event "12th KIIT International 2019"]
[Site "Odisha"]
[Date "2019.06.05"]
[Round "8.5"]
[White "Laxman, R.R."]
[Black "Konguvel, Ponnuswamy"]
[Result "1/2-1/2"]
[ECO "D90"]
[WhiteElo "2437"]
[BlackElo "2293"]
[Annotator "ChessBase"]
[PlyCount "83"]
[EventDate "2019.05.31"]
[EventType "swiss"]
[EventCountry "IND"]
[TimeControl "5400+30"]

1. Nf3 {[%emt 0:00:00]} Nf6 {[%emt 0:00:00]} 2. c4 {[%emt 0:00:00]} g6 {[%emt 0:00:22]} 3. Nc3 {[%emt 0:00:03]} Bg7 {[%emt 0:00:33]} 4. d4 {[%emt 0:03:16]} d5 {[%emt 0:01:29]} 5. cxd5 {[%emt 0:00:09]} Nxd5 {[%emt 0:00:07]} 6. Bd2 {[%emt 0:00:03]} Nb6 {[%emt 0:01:15]} 7. e3 {[%emt 0:02:29]} O-O {[%emt 0:01:03]} 8. Bb5 {[%emt 0:00:26]} a6 {[%emt 0:08:26]} 9. Be2 {[%emt 0:00:24]} Nc6 {[%emt 0:00:04]} 10. O-O {[%emt 0:00:28]} e5 {[%emt 0:00:17]} 11. dxe5 {[%emt 0:00:06]} Nxe5 {[%emt 0:00:04]} 12. Nxe5 {[%emt 0:00:16]} Bxe5 {[%emt 0:00:05]} 13. Qc2 {[%emt 0:00:30]} Be6 {[%emt 0:03:05]} 14. Rad1 {[%emt 0:01:09]} Bg7 {[%emt 0:08:04]} 15. e4 {[%emt 0:01:47]} Qe7 {[%emt 0:01:36]} 16. Be3 {[%emt 0:03:21]} Rfd8 {[%emt 0:04:48]} 17. b3 {[%emt 0:00:13]} Rxd1 {[%emt 0:06:17]} 18. Rxd1 {[%emt 0:00:02]} Rd8 {[%emt 0:00:04]} 19. Rxd8+ {[%emt 0:08:39]} Qxd8 {[%emt 0:01:42]} 20. f4 {[%emt 0:00:02]} Qd7 {[%emt 0:09:56]} 21. Qd2 {[%emt 0:05:28]} Qxd2 {[%emt 0:02:35]} 22. Bxd2 {[%emt 0:02:01]} Bd4+ {[%emt 0:00:04]} 23. Kf1 {[%emt 0:00:02]} f5 {[%emt 0:00:14]} 24. Bf3 {[%emt 0:02:56]} c6 {[%emt 0:06:09]} 25. Ke2 {[%emt 0:01:10]} Nd7 {[%emt 0:02:34]} 26. h3 {[%emt 0:02:30]} Nc5 {[%emt 0:02:53]} 27. e5 {[%emt 0:00:33]} a5 {[%emt 0:00:26]} 28. g4 {[%emt 0:07:56]} Kf7 {[%emt 0:07:12]} 29. Be1 {[%emt 0:00:09]} a4 {[%emt 0:00:58]} 30. Nxa4 {[%emt 0:03:04]} Nxa4 {[%emt 0:03:25]} 31. bxa4 {[%emt 0:01:10]} Bxa2 {[%emt 0:01:32]} 32. gxf5 {[%emt 0:00:31]} Bc4+ {[%emt 0:00:42]} 33. Kd2 {[%emt 0:00:01]} gxf5 {[%emt 0:00:08]} 34. a5 {[%emt 0:01:42]} Ke6 {[%emt 0:01:46]} 35. h4 {[%emt 0:06:12]} Bc5 {[%emt 0:06:56]} 36. Kc3 {[%emt 0:00:40]} Bd5 {[%emt 0:00:12]} 37. Be2 {[%emt 0:00:17]} Be3 {[%emt 0:01:14]} 38. Bd2 {[%emt 0:00:37]} Bf2 {[%emt 0:00:07]} 39. h5 {[%emt 0:00:02]} Bc5 {[%emt 0:01:27]} 40. Bc4 {[%emt 0:03:02]} Bxc4 {[%emt 0:02:01]} 41. Kxc4 {[%emt 0:00:01]} Bf2 {[%emt 0:00:14]} 42. Kb4 {[%emt 0:01:59]} 1/2-1/2

[Event "12th KIIT International 2019"]
[Site "Odisha"]
[Date "2019.06.05"]
[Round "8.5"]
[White "Laxman, R.R."]
[Black "Konguvel, Ponnuswamy"]
[Result "*"]
[ECO "D90"]
[WhiteElo "2437"]
[BlackElo "2293"]
[Annotator "RC"]
[PlyCount "45"]
[EventDate "2019.05.31"]
[EventType "swiss"]
[EventCountry "IND"]
[SourceTitle "playchess.com"]
[Source "ChessBase"]
[SourceQuality "1"]
[TimeControl "5400+30"]

1. Nf3 {[%emt 0:00:00]} Nf6 {[%emt 0:00:00]} 2. c4 {[%emt 0:00:00]} g6 {[%emt 0:00:22]} 3. Nc3 {[%emt 0:00:03]} Bg7 {[%emt 0:00:33]} 4. d4 {[%emt 0:03:16]} d5 {[%emt 0:01:29]} 5. cxd5 {[%emt 0:00:09]} Nxd5 {[%emt 0:00:07]} 6. Bd2 {[%emt 0:00:03]} Nb6 {[%emt 0:01:15]} 7. e3 {[%emt 0:02:29]} O-O {[%emt 0:01:03]} 8. Bb5 {[%emt 0:00:26]} a6 {[%emt 0:08:26]} 9. Be2 {[%emt 0:00:24]} Nc6 {[%emt 0:00:04]} 10. O-O {[%emt 1:28:10]} e5 {[%emt 0:00:17]} 11. dxe5 {[%emt 0:00:06]} Nxe5 {[%emt 0:00:04]} 12. Nxe5 {[%emt 0:00:16]} Bxe5 {[%emt 0:00:05]} 13. Qc2 {[%emt 0:00:30]} Be6 {[%emt 0:03:05]} 14. Rad1 {[%emt 0:01:09]} Bg7 {[%emt 0:08:04]} 15. e4 {[%emt 0:01:47]} Qe7 {[%emt 0:01:36]} 16. Be3 {[%emt 0:03:21]} Rfd8 {[%emt 0:04:48]} 17. b3 {[%emt 0:00:13]} Rxd1 {[%emt 0:06:17]} 18. Rxd1 {[%emt 0:00:02]} Rd8 {[%emt 0:00:04]} 19. Rxd8+ {[%emt 0:08:39]} Qxd8 {[%emt 0:01:42]} 20. f4 {[%emt 0:00:02]} Qd7 {[%emt 0:09:56]} 21. Qd2 {[%emt 1:17:07]} Qd5 {[%emt 0:51:13]} 22. Qd3 Qxd3 {[%emt 0:00:00]} 23. Bd2 {[%emt 0:02:31]} *